Cogmind - Beta 14 @@@ ROGUE MODE // 2024.09.09 @ 21:48:07 Player: Maulwurf Result: Destroyed by G-34 Mercenary with Small Laser Performance ------------- Evolutions (1) 500 Regions Visited (3) 600 Robots Destroyed (11) 55 Value Destroyed (377) 377 Prototype IDs (0) 0 Alien Tech Used (0) 0 Bonus (0) 0 TOTAL SCORE: 1532 Bonus ------- None Cogmind --------- Core Integrity 0/400 Matter 300/300 Energy 100/100 System Corruption 0% Temperature Cool (6) Movement Core (50) Location -9/Materials Parts ------- > --- POWER (1) -------- (None) > --- PROPULSION (3) --- (None) > --- UTILITY (3) ------ Terrain Scanner > --- WEAPON (2) ------- (None) > --- INVENTORY (5) ---- Light Treads Aluminum Leg Aluminum Leg Improved Heat Sink Mining Laser Peak State ------------ > --- POWER ------------ Light Ion Engine > --- PROPULSION ------- Aluminum Leg Aluminum Leg Aluminum Leg > --- UTILITY ---------- Small Storage Unit Terrain Scanner Weapon Shielding > --- WEAPON ----------- Small Laser Beam Rifle > --- INVENTORY -------- Light Treads Aluminum Leg Aluminum Leg EM Pulse Gun Medium Laser Light Assault Rifle Mining Laser [Rating: 10] Favorites ----------- Power Light Ion Engine Engine Light Ion Engine Propulsion Aluminum Leg Treads Light Treads Leg Aluminum Leg Utility Small Storage Unit Device Terrain Scanner Storage Small Storage Unit Protection Weapon Shielding Weapon Small Laser Energy Gun Small Laser Ballistic Gun Light Assault Rifle Special Weapon Mining Laser Build | -11 -10 -10 -9 ------- Run | Yrd Mat Min Mat Slots Evolved 2 | . . . 2 Power . | . . . . Propulsion 1 | . . . 1 Utility 1 | . . . 1 Weapon . | . . . . Parts Attached 18 | 6 7 . 5 Power 2 | 1 1 . . Engine 2 | 1 1 . . Core . | . . . . Reactor . | . . . . Propulsion 5 | 2 2 . 1 Treads 2 | 2 . . . Leg 3 | . 2 . 1 Wheel . | . . . . Hover . | . . . . Flight . | . . . . Utility 3 | 1 1 . 1 Device 1 | . . . 1 Storage 1 | 1 . . . Processor . | . . . . Hackware . | . . . . Protection 1 | . 1 . . Artifact . | . . . . Weapon 8 | 2 3 . 3 Energy Gun 6 | 1 2 . 3 Energy Cannon . | . . . . Ballistic Gun 1 | 1 . . . Ballistic Cannon . | . . . . Launcher . | . . . . Special Weapon 1 | . 1 . . Impact Weapon . | . . . . Slashing Weapon . | . . . . Piercing Weapon . | . . . . Special Melee Weapon . | . . . . Unidentified Prototypes . | . . . . Parts Lost 10 | . . . 10 Power 1 | . . . 1 Propulsion 3 | . . . 3 Utility 2 | . . . 2 Weapon 4 | . . . 4 Highest Loss Streak 7 | . . . 7 To Critical Strikes . | . . . . Average Slot Usage (%) 81 | . 90 100 72 Engine 10 | . 13 14 7 Treads 4 | . 13 . . Leg 20 | . 14 28 23 Device 2 | . . . 4 Storage 12 | . 14 14 10 Protection 8 | . 7 14 7 Energy Gun 15 | . 19 14 13 Ballistic Gun 2 | . 7 . . Special Weapon 4 | . 1 14 4 Peak Build Rating 10 | 6 7 7 10 Average Rating 6 | 4 6 7 6 On Entrance 5 | . 6 7 7 Naked Turns . | . . . . Heaviest Build 14 | 11 12 11 14 Greatest Support 40 | 40 40 20 30 Greatest Overweight (x) 3 | . . . 3 Average Overweight (x) . | . . . . Largest Inventory Capacity 8 | 8 8 8 8 Average Capacity 7 | 7 8 8 7 Most Carried 8 | 7 8 6 8 Average Carried 5 | 3 5 6 6 Final Capacity 8 | 8 8 8 5 Final Carried 6 | 5 6 6 5 Class Distribution -------------------- 100% | Mutant Dominant Class ---------------- Mutant | -10/Materials Mutant | -10/Mines Mutant | -9/Materials Resources | -11 -10 -10 -9 ----------- Run | Yrd Mat Min Mat Matter Collected 364 | 172 139 . 53 Remotely . | . . . . Salvage Created 421 | . 145 . 276 Parts 23 | 2 9 . 12 Haulers Intercepted . | . . . . Recyclers Shooed . | . . . . Parts Field Recycled . | . . . . Retrieved Matter . | . . . . Parts Self-Destructed . | . . . . Prevented . | . . . . Kills | -11 -10 -10 -9 ------- Run | Yrd Mat Min Mat Combat Hostiles Destroyed 9 | . 3 . 6 Guns 8 | . 2 . 6 AOE 1 | . 1 . . Classes Destroyed 4 | 1 2 . 1 Tunneler 1 | 1 . . . Watcher 1 | . 1 . . Grunt 7 | . 3 . 4 Sentry 2 | . . . 2 Best Kill Streak 4 | 1 3 . 4 Combat Bots Only 4 | . 2 . 4 Max Kills in Single Turn 1 | 1 1 . 1 Gunslinging . | . . . . Exploded 1 | . 1 . . Melee . | . . . . Uniques/NPCs Destroyed . | . . . . Combat | -11 -10 -10 -9 -------- Run | Yrd Mat Min Mat Hostile Shots Fired 143 | . 9 . 134 Missed 46 | . . . 46 Damage Taken 1378 | . 252 . 1126 Core 561 | . 152 . 409 Absorbed by Shields . | . . . . Redirected to Shielding 50 | . 7 . 43 Core Remaining (%) 69 | 100 . 39 . Volleys Fired 44 | . 10 . 34 Largest 2 | . 2 . 2 Hottest 140 | . 140 . 140 Shots Fired 85 | . 20 . 65 Gun 73 | . 18 . 55 Cannon . | . . . . Launcher . | . . . . Special 12 | . 2 . 10 Kinetic 3 | . 3 . . Thermal 77 | . 12 . 65 Explosive . | . . . . Electromagnetic 5 | . 5 . . Robot Hit Streak 8 | . 8 . 8 Robot Miss Streak 2 | . 1 . 2 Penetration Max . | . . . . Secondary Targets . | . . . . Shots Hit Robots 36 | . 9 . 27 Core Hits 21 | 1 4 . 16 Critical Kills . | . . . . Critical Parts Destroyed . | . . . . Critical Strikes 1 | . . . 1 Burn 1 | . . . 1 Melee Attacks . | . . . . Impact . | . . . . Slashing . | . . . . Piercing . | . . . . Sneak Attacks . | . . . . Combat Hostiles . | . . . . Follow-up Attacks . | . . . . Damage Inflicted 481 | 10 118 . 353 Guns 467 | . 118 . 349 Cannons . | . . . . Explosions . | . . . . Melee . | . . . . Ramming 14 | 10 . . 4 Kinetic 23 | . 23 . . Thermal 384 | . 35 . 349 Explosive . | . . . . Electromagnetic 60 | . 60 . . Impact . | . . . . Slashing . | . . . . Piercing . | . . . . Highest Corruption . | . . . . Average Corruption . | . . . . Corruption Purged . | . . . . Corruption Blocked . | . . . . Overload Shots . | . . . . Overflow Damage . | . . . . Projectiles . | . . . . Explosions . | . . . . Melee . | . . . . Knockbacks . | . . . . Impact . | . . . . Kinetic . | . . . . Secondary . | . . . . Self-Inflicted Damage . | . . . . Shots . | . . . . Rammed 3 | 3 . . . Targets Rammed 7 | 4 . . 3 Kicked 3 | . . . 3 Crushed 1 | 1 . . . Highest Temperature 400 | . 132 . 400 Average Temperature 91 | . 52 . 102 Received Heat Transfer 618 | . 66 . 552 Effects 2 | . . . 2 Short Circuit 1 | . . . 1 Damage (minor) 1 | . . . 1 Siege Activations . | . . . . Robots Corrupted . | . . . . Combat Hostiles . | . . . . Parts Fried . | . . . . Impact Corruptions . | . . . . Robots Melted . | . . . . Combat Hostiles . | . . . . Parts Melted 3 | . . . 3 Heat Transferred 1017 | . 87 . 930 Parts Sabotaged . | . . . . Parts Stolen . | . . . . Parts Stripped . | . . . . Power Chain Reactions . | . . . . Alert | -11 -10 -10 -9 ------- Run | Yrd Mat Min Mat Peak Influence 251 | 5 100 39 251 Initial 39 | . 3 39 14 Average 61 | 1 41 39 92 Maximum Alert Level 1 | . . . 1 Low Security (%) 91 | 100 100 100 83 Level 1 8 | . . . 16 Level 2 . | . . . . Level 3 . | . . . . Level 4 . | . . . . Level 5 . | . . . . High Security . | . . . . Max Security . | . . . . Squads Dispatched 2 | . 1 . 1 Investigation . | . . . . Extermination . | . . . . Reinforcement 2 | . 1 . 1 Assault . | . . . . Garrison . | . . . . Intercept . | . . . . Searches Triggered . | . . . . Construction Impeded . | . . . . Haulers Reinforced . | . . . . Active Scanning Responses . | . . . . Cargo Convoy Interrupts . | . . . . Stealth | -11 -10 -10 -9 --------- Run | Yrd Mat Min Mat Distress Signals 2 | . 1 . 1 Communications Jammed . | . . . . Distress Signals . | . . . . Times Spotted 24 | . 5 . 19 Peak Tracking Total 11 | . 3 . 11 Tactical Retreats 2 | . . . 2 Traps | -11 -10 -10 -9 ------- Run | Yrd Mat Min Mat Traps Triggered 3 | . 2 . 1 Indirectly . | . . . . Trap Hack Attempts . | . . . . Triggered . | . . . . Disarmed . | . . . . Reprogrammed . | . . . . Reused . | . . . . Traps Extracted . | . . . . Installed . | . . . . Triggered . | . . . . Machines | -11 -10 -10 -9 ---------- Run | Yrd Mat Min Mat Machines Disabled . | . . . . Max in Single Turn . | . . . . Machines Repaired . | . . . . Machines Dismantled . | . . . . Machines Sabotaged . | . . . . Overloaded Fab Kills . | . . . . Hacking | -11 -10 -10 -9 --------- Run | Yrd Mat Min Mat Machines Accessed 4 | . 2 . 2 Terminals 4 | . 2 . 2 Fabricators . | . . . . Repair Stations . | . . . . Recycling Units . | . . . . Scanalyzers . | . . . . Garrison Access . | . . . . Total Hacks 6 | . 4 . 2 Successful 5 | . 4 . 1 Failed 1 | . . . 1 Catastrophic . | . . . . Database Lockouts . | . . . . Manual . | . . . . Terminals 6 | . 4 . 2 Fabricators . | . . . . Repair Stations . | . . . . Recycling Units . | . . . . Scanalyzers . | . . . . Garrison Access . | . . . . Terminal Hacks 5 | . 4 . 1 Alert Level 1 | . 1 . . Dispatch Records 1 | . 1 . . Patrol Status 1 | . 1 . . Zone Layout 2 | . 1 . 1 Fabricator Hacks . | . . . . Repair Station Hacks . | . . . . Recycling Unit Hacks . | . . . . Scanalyzer . | . . . . Garrison Access Hacks . | . . . . Unauthorized Hacks . | . . . . Terminals . | . . . . Fabricators . | . . . . Repair Stations . | . . . . Recycling Units . | . . . . Scanalyzers . | . . . . Garrison Access . | . . . . Data Cores Recovered . | . . . . Used . | . . . . Hacking Detections 2 | . 1 . 1 Full Trace Events . | . . . . Feedback Events . | . . . . Feedback Blocked . | . . . . Robot Schematics Acquired . | . . . . Robots Built . | . . . . Authchips . | . . . . Time . | . . . . Total Robot Build Rating . | . . . . Part Schematics Acquired . | . . . . Parts Built . | . . . . Authchips . | . . . . Time . | . . . . Total Part Build Rating . | . . . . Parts Repaired . | . . . . Time . | . . . . Parts Recycled . | . . . . Recycled Matter . | . . . . Retrieved Matter . | . . . . Retrieved Components . | . . . . Parts Scanalyzed . | . . . . Part Schematics Acquired . | . . . . Parts Damaged . | . . . . Bothacking | -11 -10 -10 -9 ------------ Run | Yrd Mat Min Mat Used RIF Installer . | . . . . Robots Hacked . | . . . . Non-combat . | . . . . Combat . | . . . . Robot Hacks Applied . | . . . . Relay Couplers Released . | . . . . Fabnet Peak Effective % . | . . . . Robots Rewired . | . . . . Allies Hacked . | . . . . Hacks Repelled . | . . . . Allies | -11 -10 -10 -9 -------- Run | Yrd Mat Min Mat Total Allies . | . . . . Largest Group . | . . . . Highest-Rated Group . | . . . . Highest-Rated Ally . | . . . . Total Orders . | . . . . Ally Attacks . | . . . . Total Damage . | . . . . Kills . | . . . . Allies Corrupted . | . . . . Allies Melted . | . . . . Intel | -11 -10 -10 -9 ------- Run | Yrd Mat Min Mat Robot Analysis Total . | . . . . Derelict Logs Recovered . | . . . . Drone Launches . | . . . . Drone Recoveries . | . . . . Exploration | -11 -10 -10 -9 ------------- Run | Yrd Mat Min Mat Turns Passed 841 | 92 243 93 413 Spaces Moved 367 | 45 95 77 150 Core 32 | 4 . . 28 Treads 73 | 41 32 . . Legs 262 | . 63 77 122 Wheels . | . . . . Hover . | . . . . Flight . | . . . . Fastest Speed 50 | 50 120 120 120 Average Speed 131 | 150 133 120 131 Slowest Speed 200 | 160 160 120 200 Overloaded Moves . | . . . . Propulsion Burnouts . | . . . . Robots Hopped . | . . . . Cave-ins Triggered . | . . . . Exploration Rate (%) 20 | 5 27 26 22 Regions Visited 3 Branch Regions 1 Pre-discovered Areas . | . . . . Known Exits Taken . | . . . . Unknown Exits Taken 3 | 1 1 1 . Scrap Searched . | . . . . Spaces Dug 11 | . 2 . 9 Terrain Destroyed 12 | . 2 . 10 Melee . | . . . . Projectile 12 | . 2 . 10 AOE . | . . . . Terrain Rammed . | . . . . Walls Destroyed . | . . . . Machines Disabled . | . . . . Actions | -11 -10 -10 -9 --------- Run | Yrd Mat Min Mat Total 614 | 67 189 77 281 Wait 155 | 2 68 1 84 Move 364 | 44 94 76 150 Hop . | . . . . Pick Up 23 | 11 8 . 4 Fast Attach . | . . . . Attach 18 | 6 7 . 5 Detach 2 | . 1 . 1 Swap . | . . . . Drop 1 | . 1 . . Fire 44 | . 10 . 34 Melee . | . . . . Ram . | . . . . Kick 3 | . . . 3 Crush 4 | 4 . . . Escape Stasis . | . . . . Rewire . | . . . . Trap . | . . . . Miscellaneous . | . . . . Route ------- -11/Scrapyard -10/Materials -10/Mines -9/Materials History --------- Turn | Location | Event 19 | -11/Scrapyard | Discovered new exit (range 16) 93 | -11/Scrapyard | Entered Materials 239 | -10/Materials | Discovered new exit (range 16) 277 | -10/Materials | Core integrity fell below 50% 315 | -10/Materials | Build established: Mutant 336 | -10/Materials | Entered Mines 419 | -10/Mines | Discovered new exit (range 7) 429 | -10/Mines | Entered Materials 429 | -9/Materials | Evolved 2 slots: Propulsion x1, Utility x1 759 | -9/Materials | Lost 7 parts (1p3n1u2w) 769 | -9/Materials | Core integrity fell below 50% 815 | -9/Materials | Core integrity fell below 20% 842 | -9/Materials | Destroyed by G-34 Mercenary with Small Laser Last Messages --------------- 00731_ Acquired 20 matter. 00732_ Terrain Scanner broken. 00732_ Overheating: Short circuit. 00732_ G-34 Mercenary destroyed. 00764_ Neutrino Reactor explodes. 00764_ EM Pulse Gun destroyed. 00764_ R-06 Scavenger collects Hvy. Assault Rifle. 00767_ G-34 Mercenary misfires. 00777_ U-05 Engineer builds a Door. 00781_ K-01 Serf collects debris. 00782_ U-05 Engineer lays Concrete. 00806_ Med. Laser destroyed. 00820_ G-34 Mercenary IFF system glitched. 00824_ Sml. Storage Unit destroyed. 00828_ G-34 Mercenary destroyed. 00830_ R-06 Scavenger collects Lgt. Assault Rifle. 00836_ R-06 Scavenger collects Corrupted Heat Sink. 00837_ K-01 Serf collects debris. 00840_ G-34 Mercenary misfires. 00840_ K-01 Serf collects debris. Map ----- +----------------------------------------------------+ | | | | | | | | | | | ????????????????????????????#????????????????????? | | ?????????????????????????????????????????????????? | | ??????????????????##########????#???????#????????? | | ??????????????????# "T" ##########????????????? | | ??????????????????# # #?????#??????? | | ??????????????????# = # !|| #????????????? | | ??????????????????# # !|| #????????????? | | ??????????????????# # !|| #?#??????????? | | ??????????????????# # ##?????? ????? | | ??????????????????# # #???????+???? | | ??????????????????# # [%"T" #?????? #???? | | ??????????????????# # %[[""" #?????? #???? | | ??????????????????######+### =[% =%*#??##? ##??? | | ?????????????????????# ###+########## #??? | | ?????????????????????# T" #??? | | ?????????????????????# g " + ?? | | ??????????????######## #??? | | ??????? % ####### %#### #??? | | ??????? ######## ##???#?#= %##########??? | | ??????????????????????# k #??????#%^ #= #??? | | ?????????????????????## @#??????#*=%+%=! #??? | | ??????????????????????# #??????#^=|#!! "T" # | | ??????????????????????# #??????#%*%#== # | | ??????????????????????# #????#?#=!=########## | | ??????????????????????#w #??######+#######???#### | | ??????????????????????# #??# * ##??????? | | ??????????????????????# #??# ##??????? | | ??????????????????????# #??# #???????? | | ??????????????????????# #??# #???????? | | ??????????????????????# #??# !#???????? | | ??????????????????????# #??# #???????? | | ??????????????????????# ##?# #???????? | | ?????????????????????? ################??????? | | ?????????????????????? #???# #??????? | | ?????????????????????? ##########?????? | | ??????????????????????? # #??#### | | ?????????????????????????? #### # T #??# | | ??????????????????????????##??# # #??# | | ?????????????????????????##???# # #??# | | ???????????????????????######## / #??# "" | | ???????????????????????# #""" #??# "" | | ???????????????????????# #""" #??# "" | | ???????????????????????# #""" #??# | | ????######?????????????# #### # #??# | | ???? #?????????????# #??# ################ | +----------------------------------------------------+ Best States ------------- Heat Dissipation 28 Energy Generation 10 Energy Capacity 125 Matter Stores 300 Matter Capacity 300 Sight Range 16 Terrain Scan Range 14 Terrain Scan Density 10 Weapon Shielding 33 Evasion (%) 55 Recoil Reduction 2 Item Schematics ----------------- None Robot Schematics ------------------ None Fabricated ------------ Nothing Alien Tech Used ----------------- None Achievements -------------- None Challenges ------------ None Game ------ Seed AssembledFissionShield Manual? 0 Play Time 00:16:42 Cumulative 6.9 hours Start 2024.09.09 @ 21:24:00 End 2024.09.09 @ 21:48:07 Sessions 1 Manual Loads 0 Difficulty Rogue Special Mode None Game No. 18 Rogue 18 Adventurer 0 Explorer 0 Win Type - Total 0 Types 0/0/0/0/0/0/0/0/0 Lore% 10 Gallery% 7 Achievement% 12 Wizard Run 0 Options --------- Layout 0 ASCII 0 Keyboard 1 Movement Numpad Keybinds 0 Fullscreen 1 Font 18/SmallcapsGlow Map View 76x50 Zoom Use 0% Tactical HUD 1 Map Filters NONE Filters NONE Steam 1 RUN: 29c95a46-ad59-43a7-9419-5402894d6e48